Workbook

Sheet キャンペーン セールス ファンネル
B1: キャンペーン | F1: セールス ステージおよび対応するデータを表示しているセールス ファンネル グラフはこのセルにあります。
B2: セールス ファンネル
B3: ステージ | C3: 見込み客 | D3: 損失 | E3: 対象外
B4: 識別済み | C4: 250 | D4: 20 | E4: 9
B5: 連絡済み | C5: 150 | D5: 15
B6: 議論 | C6: 100 | D6: 35
B7: 受注 | C7: 15
B9: ヒント:上のセルに数値を入力して、セールス ファンネル グラフを更新します。

Sheet 新規 (hidden)
A1: *** このシートは非表示のままにします ***
B7: 年平均: | C7: =AVERAGE(AD13:AE13) -> 183
AD9: =AA12/2+8+50 -> 183
E10: パーセンテージの系列とラベル | J10: ステージ合計とラベル | O10: ステージ合計とラベル | T10: 対象外の集計とラベル | Y10: エッジ
B11: ステージ | C11: x | E11: オフセット | G11: 0.45 | H11: =3.85%*C7 -> 7.0455 | J11: オフセット | L11: 0.45 | M11: =-3.85%*C7 -> -7.0455 | O11: オフセット | Q11: 0.45 | R11: =-19.2%*C7 -> -35.136 | T11: オフセット | V11: 0.45 | W11: =-25.7%*C7 -> -47.031 | Y11: 1.8 | AD11: =AD12-8 -> 50 | AE11: =AE12+8 -> 316
B12: RIM | E12: ラベル | F12: 価格 | G12: x | H12: y | J12: ラベル | K12: 価格 | L12: x | M12: y | O12: ラベル | P12: 価格 | Q12: x | R12: y | T12: ラベル | U12: 価格 | V12: x | W12: y | Y12: 2 | AA12: =K13 -> 250 | AB12: 識別済み | AD12: =-AA12/2+$AD$9 -> 58 | AE12: =AA12/2+$AD$9 -> 308 | AG12: =AE12 -> 308 | AH12: 0 | AI12: 0 | AJ12: 0
B13: 識別済み | C13: 2 | E13: =F13 -> 100% | F13: 100% | G13: =$C13+G$11 -> 2.45 | H13: =$C$7+$H$11 -> 190.0455 | J13: =UPPER(B13)&" "&K13 -> 識別済み 250 | K13: ='キャンペーン セールス ファンネル'!C4 -> 250 | L13: =$C13+L$11 -> 2.45 | M13: =$C$7+$M$11 -> 175.9545 | O13: ="損失 " & P13 -> 損失 20 | P13: ='キャンペーン セールス ファンネル'!D4 -> 20 | Q13: =$C13+Q$11 -> 2.45 | R13: =$C$7+$R$11 -> 147.864 | T13: ="対象外 "&U13 -> 対象外 9 | U13: ='キャンペーン セールス ファンネル'!E4 -> 9 | V13: =$C13+V$11 -> 2.45 | W13: =$C$7+$W$11 -> 135.969 | Y13: =Y12+1 -> 3 | AB13: 識別済み | AD13: =-K13/2+$AD$9 -> 58 | AE13: =K13/2+$AD$9 -> 308 | AG13: =AE13 -> 308 | AH13: =AE13 -> 308 | AI13: 0 | AJ13: 0
B14: 連絡済み | C14: 3 | E14: =F14 -> 60% | F14: ='キャンペーン セールス ファンネル'!C5/'キャンペーン セールス ファンネル'!$C$4 -> 60% | G14: =$C14+G$11 -> 3.45 | H14: =$C$7+$H$11 -> 190.0455 | J14: =UPPER(B14)&" "&K14 -> 連絡済み 150 | K14: ='キャンペーン セールス ファンネル'!C5 -> 150 | L14: =$C14+L$11 -> 3.45 | M14: =$C$7+$M$11 -> 175.9545 | O14: ="損失 " & P14 -> 損失 15 | P14: ='キャンペーン セールス ファンネル'!D5 -> 15 | Q14: =$C14+Q$11 -> 3.45 | R14: =$C$7+$R$11 -> 147.864 | Y14: =Y13+1 -> 4 | AB14: 連絡済み | AD14: =-K14/2+$AD$9 -> 108 | AE14: =K14/2+$AD$9 -> 258 | AH14: =AE14 -> 258 | AI14: =AE14 -> 258 | AJ14: 0
B15: 議論 | C15: 4 | E15: =F15 -> 40% | F15: ='キャンペーン セールス ファンネル'!C6/'キャンペーン セールス ファンネル'!$C$4 -> 40% | G15: =$C15+G$11 -> 4.45 | H15: =$C$7+$H$11 -> 190.0455 | J15: =UPPER(B15)&" "&K15 -> 議論 100 | K15: ='キャンペーン セールス ファンネル'!C6 -> 100 | L15: =$C15+L$11 -> 4.45 | M15: =$C$7+$M$11 -> 175.9545 | O15: ="損失 " & P15 -> 損失 35 | P15: ='キャンペーン セールス ファンネル'!D6 -> 35 | Q15: =$C15+Q$11 -> 4.45 | R15: =$C$7+$R$11 -> 147.864 | Y15: =Y14+1 -> 5 | AB15: 議論 | AD15: =-K15/2+$AD$9 -> 133 | AE15: =K15/2+$AD$9 -> 233 | AI15: =AE15 -> 233 | AJ15: =AE15 -> 233
B16: 受注 | C16: 5 | E16: =F16 -> 6% | F16: ='キャンペーン セールス ファンネル'!C7/'キャンペーン セールス ファンネル'!$C$4 -> 6% | G16: =$C16+G$11 - 0.1 -> 5.35 | H16: =$C$7+$H$11 -> 190.0455 | J16: =UPPER(B16) -> 受注 | K16: ='キャンペーン セールス ファンネル'!C7 -> 15 | L16: =$C16+L$11 -0.1 -> 5.35 | M16: =$C$7+$M$11 -> 175.9545 | Y16: =Y15+1 -> 6 | AB16: 受注 | AD16: =-K16/2+$AD$9 -> 175.5 | AE16: =K16/2+$AD$9 -> 190.5 | AJ16: =AE16 -> 190.5
B17: 受注したドット | C17: 6 | K17: =K16 -> 15 | L17: 6.44 | M17: =C7 -> 183
